bitfinex/quotes_SOLUSD_20240625
["timestamp","ask_amount","ask_price","bid_price","bid_amount"]
[1719345781019,1.43502399,138.88,138.8,20.95]
[1719345781217,1.43502399,138.88,138.81,20.34]
[1719345781432,21.4627,138.89,138.83,20.95]
[1719345781646,21.4627,138.89,138.84,0.34]
[1719345781811,21.4627,138.89,138.84,20.34]
[1719345782835,6.1818,138.92,138.86,20.95]
[1719345783013,6.1818,138.92,138.87,0.34]
[1719345784722,16.0936,138.93,138.87,20.34]
[1719345785119,6.5715,138.95,138.89,20.95]
[1719345785438,6.5715,138.95,138.9,0.34]
[1719345787025,8.00652399,138.95,138.9,0.34]
[1719345789610,8.00652399,138.95,138.89,20.95]
[1719345789821,8.00652399,138.95,138.88,0.17]
[1719345790032,8.00652399,138.95,138.86,20.95]
[1719345790937,8.00652399,138.95,138.87,0.17]
[1719345791622,8.00652399,138.95,138.87,0.34]
[1719345792342,8.00652399,138.95,138.87,20.34]
[1719345792848,8.00652399,138.95,138.87,0.34]
[1719345793060,8.00652399,138.95,138.87,0.17]
[1719345793429,8.00652399,138.95,138.86,0.17]
[1719345794344,8.00652399,138.95,138.86,0.34]
[1719345795043,15.20342399,138.95,138.86,0.34]
[1719345795345,7.1974,138.94,138.86,0.34]
[1719345795657,1.43502399,138.93,138.86,0.34]
[1719345796030,1.43502399,138.93,138.85,0.34]
[1719345796732,1.43502399,138.94,138.86,0.17]
[1719345797044,1.43502399,138.94,138.86,20.95]
[1719345797232,1.43502399,138.94,138.87,0.34]
[1719345802754,1.43502399,138.94,138.83,20.0]
[1719345802755,15.3102,138.93,138.83,20.0]
[1719345802962,8.08452399,138.92,138.84,1.4394175]
[1719345804180,8.08452399,138.92,138.85,0.17]
[1719345804551,8.08452399,138.92,138.85,0.34]
[1719345805061,6.6495,138.92,138.86,1.43921018]
[1719345805358,6.6495,138.92,138.87,0.34]
[1719345805558,15.3102,138.93,138.87,0.34]
[1719345805741,15.3102,138.93,138.88,20.95]
[1719345805947,15.3102,138.93,138.89,0.34]
[1719345807128,15.3102,138.93,138.89,0.7611334]
[1719345807528,15.3102,138.93,138.89,0.5911334]
[1719345807756,1.43502399,138.92,138.85,21.3711334]
[1719345808057,6.2345,138.91,138.86,0.45979065]
[1719345808358,1.43502399,138.9,138.83,0.46017974]
[1719345809734,6.2345,138.91,138.83,0.46017974]
[1719345810739,6.2345,138.91,138.84,0.34]
[1719345810951,6.2345,138.91,138.85,20.95]
[1719345811152,6.2345,138.91,138.86,0.80008032]
[1719345811872,1.43502399,138.9,138.86,0.80008032]
[1719345812042,1.43502399,138.9,138.86,0.34]
[1719345813954,6.2345,138.91,138.86,0.34]
[1719345816964,6.2345,138.91,138.86,0.79998093]
[1719345817970,1.43502399,138.9,138.86,0.62998093]
[1719345818277,15.1615,138.89,138.83,0.64079542]
[1719345818641,15.1615,138.89,138.84,20.95]
[1719345818865,15.1615,138.89,138.85,0.64346546]
[1719345819459,6.2345,138.91,138.87,20.95]
[1719345819662,15.1615,138.92,138.88,0.81332646]
[1719345819866,15.1615,138.92,138.89,0.17]
[1719345822458,15.1615,138.92,138.88,0.34]
[1719345822644,15.1615,138.92,138.88,0.17]
[1719345822851,15.1615,138.92,138.88,0.34]
[1719345824265,1.43502399,138.91,138.85,20.0]
[1719345824470,1.43502399,138.91,138.84,20.95]
[1719345824866,6.4326,138.9,138.79,1.24553771]
[1719345825170,17.35092399,138.89,138.8,20.95]
[1719345825375,17.35092399,138.89,138.81,20.0]
[1719345825959,17.35092399,138.89,138.8,20.95]
[1719345826173,17.35092399,138.89,138.81,0.17]
[1719345826375,17.35092399,138.89,138.76,17.9938]
[1719345826376,6.4326,138.88,138.76,17.9938]
[1719345826575,1.43502399,138.87,138.77,20.95]
[1719345827777,1.43502399,138.87,138.78,0.34]
[1719345830062,6.0902,138.85,138.78,0.17]
[1719345830377,1.43502399,138.84,138.77,0.17]
[1719345830591,1.43502399,138.84,138.75,40.95]
[1719345830885,1.43502399,138.84,138.75,20.0]
[1719345831072,1.43502399,138.84,138.74,20.95]
[1719345831073,15.9923,138.83,138.74,20.95]
[1719345831277,1.43502399,138.82,138.75,20.0]
[1719345831867,1.43502399,138.82,138.74,20.95]
[1719345832164,1.43502399,138.82,138.75,20.34]
[1719345839093,17.42732399,138.83,138.75,20.34]
[1719345839291,1.43502399,138.82,138.75,20.34]
[1719345841204,15.9923,138.83,138.75,20.34]
[1719345843504,15.9923,138.83,138.8,20.95]
[1719345843693,15.9923,138.83,138.81,0.34]
[1719345844791,15.9923,138.83,138.78,20.0]
[1719345844999,15.9923,138.83,138.79,0.34]
[1719345845492,15.9923,138.83,138.78,0.34]
[1719345846781,1.43502399,138.82,138.78,0.34]
[1719345847991,15.9923,138.83,138.78,0.34]
[1719345848690,15.9923,138.83,138.81,6.98]
[1719345849074,15.9923,138.83,138.82,6.98]
[1719345849502,15.9923,138.83,138.81,6.98]
[1719345849706,15.9923,138.83,138.82,6.98]
[1719345851300,15.9923,138.83,138.78,0.34]
[1719345851509,1.43502399,138.82,138.79,6.98]
[1719345851876,1.43502399,138.82,138.8,6.98]
[1719345852411,17.42732399,138.83,138.8,6.98]
[1719345852604,17.42732399,138.83,138.78,0.34]
[1719345853100,17.42732399,138.83,138.77,0.34]
[1719345853480,15.9923,138.83,138.77,0.34]
[1719345854106,1.43502399,138.82,138.77,0.34]
[1719345854989,15.9923,138.83,138.77,0.34]
[1719345856006,6.0902,138.85,138.77,0.34]
[1719345856007,6.0902,138.85,138.79,20.95]
[1719345856308,6.0902,138.85,138.8,0.34]
[1719345856605,6.0902,138.85,138.8,20.34]
[1719345860091,6.0902,138.85,138.8,0.34]
[1719345860482,7.52522399,138.85,138.8,0.34]
[1719345861303,7.52522399,138.85,138.8,0.17]
[1719345861499,7.52522399,138.85,138.79,0.17]
[1719345862502,6.0902,138.85,138.79,0.56703708]
[1719345862679,6.0902,138.85,138.8,0.17]
[1719345862879,6.0902,138.85,138.8,21.51700847]
[1719345863107,6.0902,138.85,138.81,0.17]
[1719345863615,16.0321,138.86,138.81,0.17]
[1719345865583,16.0321,138.86,138.81,20.17]
[1719345865795,16.0321,138.86,138.82,0.39695127]
[1719345866002,1.43502399,138.85,138.78,20.95]
[1719345866211,1.43502399,138.85,138.79,0.39703706]
[1719345867211,1.43502399,138.85,138.8,0.34]
[1719345870814,1.43502399,138.85,138.81,0.17]
[1719345871119,1.43502399,138.85,138.79,0.73801906]
[1719345872224,1.43502399,138.85,138.79,0.39801906]
[1719345873000,1.43502399,138.85,138.76,20.39801906]
[1719345873413,1.43502399,138.85,138.77,0.39799037]
[1719345873610,1.43502399,138.85,138.78,0.34]
[1719345875590,1.43502399,138.85,138.78,21.68796181]
[1719345876618,17.46712399,138.86,138.82,6.98]
[1719345876905,16.0321,138.86,138.84,6.98]
[1719345877093,16.0321,138.86,138.81,27.92]
[1719345877292,16.0321,138.86,138.84,6.98]
[1719345877800,16.0321,138.86,138.85,6.98]
[1719345878512,1.43502399,138.87,138.85,6.98]
[1719345879512,1.43502399,138.87,138.84,6.98]
[1719345880605,1.43502399,138.87,138.82,1.7780088]
[1719345880805,1.43502399,138.87,138.82,0.34]
[1719345881029,1.43502399,138.87,138.81,1.77759441]
[1719345881399,7.48912399,138.88,138.81,1.77759441]
[1719345884536,16.5018,138.89,138.81,21.77759441]
[1719345884819,7.89082399,138.91,138.83,20.94]
[1719345885025,17.53762399,138.93,138.86,20.94]
[1719345885204,16.1026,138.93,138.87,1.77697328]
[1719345885911,1.1026,138.93,138.87,21.77697328]
[1719345887129,2.53762399,138.93,138.87,21.77697328]
[1719345887308,2.53762399,138.93,138.87,1.77697328]
[1719345887511,2.53762399,138.93,138.87,0.34]
[1719345896539,1.43502399,138.93,138.87,0.34]
[1719345897116,6.4558,138.94,138.87,0.34]
[1719345900051,1.43502399,138.93,138.87,0.34]
[1719345900629,1.43502399,138.93,138.89,6.98]
[1719345900834,1.43502399,138.93,138.87,0.17]
[1719345901133,6.98,138.92,138.87,6.98]
[1719345901339,1.43502399,138.91,138.87,6.98]
[1719345901714,24.32332399,138.91,138.81,1.0072]
[1719345901909,6.98,138.89,138.78,16.6475]
[1719345902114,1.43502399,138.88,138.83,6.98]
[1719345903724,16.326,138.85,138.74,394.8582]
[1719345903924,1.43502399,138.84,138.74,394.8582]
[1719345904120,8.41502399,138.84,138.79,6.98]
[1719345904324,8.41502399,138.84,138.78,6.98]
[1719345904622,13.4072,138.83,138.78,6.98]
[1719345904835,1.43502399,138.82,138.74,15.0582]
[1719345905037,8.41502399,138.82,138.71,15.0582]
[1719345905345,1.43502399,138.82,138.78,6.98]
[1719345905563,1.43502399,138.82,138.79,6.98]
[1719345905760,1.43502399,138.82,138.78,6.98]
[1719345906658,1.43502399,138.82,138.72,20.96]
[1719345906961,1.43502399,138.82,138.73,20.17]
[1719345907158,1.43502399,138.82,138.71,36.0182]
[1719345907330,21.43502399,138.82,138.72,1.43803088]
[1719345908634,21.43502399,138.82,138.73,0.34]
[1719345909331,16.2968,138.81,138.73,0.34]
[1719345909538,1.43502399,138.8,138.73,0.34]
[1719345909737,1.43502399,138.8,138.72,0.34]
[1719345910341,1.43502399,138.81,138.73,21.9672]
[1719345910541,1.43502399,138.81,138.74,20.34]
[1719345910837,1.43502399,138.82,138.74,20.34]
[1719345914348,6.4272,138.83,138.76,20.96]
[1719345914557,6.4272,138.83,138.77,0.34]
[1719345914749,1.43502399,138.84,138.77,0.34]
[1719345914945,16.1562,138.85,138.77,35.376]
[1719345915144,16.1562,138.85,138.79,20.96]
[1719345915347,7.75212399,138.87,138.8,0.34]
[1719345916148,15.2647,138.88,138.8,0.34]
[1719345916357,15.2647,138.88,138.8,20.34]
[1719345918466,7.49104132,138.92,138.85,20.96]
[1719345918668,16.62272399,138.93,138.86,0.34]
[1719345918849,15.1877,138.93,138.86,1.78498589]
[1719345919275,6.1481,138.94,138.86,1.78498589]
[1719345919448,6.1481,138.94,138.86,21.78498589]
[1719345921268,15.7806,138.96,138.88,20.96]
[1719345921443,1.43502399,138.98,138.91,20.96]
[1719345921639,1.43502399,139.02,138.94,20.96]
[1719345921843,1.43502399,139.02,138.95,1.78404994]
[1719345924076,1.43502399,139.02,138.95,0.34]
[1719345924451,1.43502399,139.02,138.94,1.78427336]
[1719345925865,28.62822399,139.02,138.94,1.78427336]
[1719345926070,8.62892399,139.01,138.94,0.34]
[1719345926275,1.43502399,139.01,138.94,0.34]
[1719345927167,8.62882399,139.01,138.91,1.44452348]
[1719345927357,8.62882399,139.01,138.92,0.17]
[1719345927555,7.1942,139.0,138.91,1.44452348]
[1719345927754,1.43502399,138.99,138.91,1.44452348]
[1719345928662,1.43502399,138.99,138.92,0.17]
[1719345928862,1.43502399,139.0,138.92,0.34]
[1719345929462,1.43502399,139.01,138.93,20.96]
[1719345929679,1.43502399,139.02,138.94,1.78421157]
[1719345930479,8.62842399,139.02,138.94,1.78421157]
[1719345930681,7.1944,139.0,138.91,1.4442489]
[1719345930889,1.43502399,138.99,138.91,1.4442489]
[1719345931876,1.43502399,138.99,138.92,0.17]
[1719345932081,1.43502399,138.99,138.92,0.34]
[1719345932584,8.62872399,139.01,138.92,0.34]
[1719345932887,7.1943,139.0,138.92,0.34]
[1719345933050,1.43502399,138.99,138.92,0.34]
[1719345936500,1.43502399,138.99,138.89,36.5887]
[1719345936654,8.62972399,138.99,138.89,36.5887]
[1719345936858,1.43502399,138.98,138.89,36.5887]
[1719345937705,1.43502399,138.98,138.9,0.17]
[1719345937863,1.43502399,139.0,138.9,0.34]
[1719345939193,7.1947,138.99,138.9,0.34]
[1719345939400,1.43502399,138.98,138.9,0.17]
[1719345939692,8.63032399,138.98,138.9,0.17]
[1719345939859,22.4457,138.97,138.9,0.17]
[1719345940069,1.43502399,138.96,138.9,0.17]
[1719345940268,1.43502399,138.96,138.87,1.0072]
[1719345940562,7.1973,138.94,138.85,16.2293]
[1719345940777,1.43502399,138.93,138.85,16.2293]
[1719345941660,1.43502399,138.95,138.86,0.17]
[1719345941859,1.43502399,138.95,138.86,0.34]
[1719345942062,8.63182399,138.95,138.86,0.34]
[1719345942286,8.63182399,138.95,138.86,0.17]
[1719345943384,1.43502399,138.95,138.86,0.17]
[1719345943698,8.63182399,138.95,138.86,0.34]
[1719345943874,7.1975,138.94,138.86,0.34]
[1719345944069,8.63312399,138.93,138.85,16.2293]
[1719345944301,1.43502399,138.92,138.82,20.96]
[1719345944803,28.63342399,138.92,138.82,20.96]
[1719345945176,1.43502399,138.91,138.82,20.96]
[1719345946585,1.43502399,138.91,138.83,0.17]
[1719345946978,1.43502399,138.91,138.83,0.34]
[1719345953099,1.43502399,138.91,138.83,1.78483736]
[1719345953796,1.43502399,138.93,138.83,1.78483736]
[1719345957508,7.1963,138.96,138.83,1.78483736]
[1719345957509,1.43502399,138.95,138.85,20.96]
[1719345957692,1.43502399,138.95,138.87,16.543]
[1719345957882,1.43502399,138.95,138.88,1.78770471]
[1719345960419,1.43502399,138.96,138.88,42.74770471]
[1719345960705,1.43502399,138.99,138.88,42.74770471]
[1719345962206,1.43502399,138.99,138.88,21.78770471]
[1719345962515,8.63012399,138.99,138.88,1.78770471]
[1719345962685,1.43502399,138.98,138.88,1.78770471]
[1719345963306,1.43502399,138.98,138.89,20.96]
[1719345963481,1.43502399,138.98,138.9,1.78764484]
[1719345963888,1.43502399,138.99,138.9,1.78764484]
[1719345965504,1.43502399,138.99,138.92,20.96]
[1719345965709,1.43502399,139.02,138.93,1.78831169]
[1719345967604,1.43502399,139.02,138.93,2.79551169]
[1719345967905,1.43502399,139.02,138.93,22.79551169]
[1719345968120,1.43502399,139.05,138.96,15.1982]
[1719345968321,1.43502399,139.05,138.97,1.78789481]
[1719345969791,1.43502399,139.06,138.97,1.78789481]
[1719345973000,8.62612399,139.06,138.97,1.78789481]
[1719345974338,1.43502399,139.06,138.98,1.0072]
[1719345974513,1.43502399,139.07,139.0,16.1687]
[1719345974692,1.43502399,139.07,139.01,3.00044088]
[1719345975520,2.28872559,139.09,139.01,3.00044088]
[1719345976818,9.47832559,139.09,139.01,3.00044088]
[1719345977214,7.1901,139.08,139.01,2.66044088]
[1719345977421,1.43502399,139.07,139.0,18.82914088]
[1719345977615,7.1907,139.07,139.0,16.1687]
[1719345977915,1.43502399,139.06,139.0,16.1687]
[1719345979317,1.43502399,139.06,138.98,1.0072]
[1719345979492,7.192,139.05,138.97,15.0486]
[1719345979704,7.1927,139.03,138.97,15.0486]
[1719345979891,1.43502399,139.02,138.95,1.0072]
[1719345980091,1.43502399,139.02,138.95,2.23125989]
[1719345981107,1.43502399,139.02,138.94,15.0486]
[1719345981306,7.194,139.01,138.94,15.0486]
[1719345981535,1.43502399,139.0,138.94,15.0486]
[1719345984133,1.43502399,139.0,138.91,1.22405989]
[1719345984640,1.43502399,139.0,138.92,0.17]
[1719345984941,8.62942399,139.0,138.91,1.22405989]
[1719345986321,1.43502399,139.0,138.91,1.22405989]
[1719345987211,1.43502399,139.0,138.92,0.34]
[1719345988319,8.62932399,139.0,138.92,0.34]
[1719345988656,8.62932399,139.0,138.92,0.17]
[1719345988821,8.62932399,139.0,138.91,1.22405989]
[1719345989764,15.0099,138.99,138.87,303.0997]
[1719345989921,21.43502399,138.98,138.87,16.2776]
[1719345991147,28.63042399,138.98,138.88,0.17]
[1719345991319,28.63042399,138.98,138.88,0.34]
[1719345991519,21.43502399,138.98,138.88,0.34]
[1719345993346,28.63032399,138.98,138.88,0.34]
[1719345993546,28.63032399,138.98,138.84,20.96]
[1719345993547,6.1138,138.97,138.84,15.8457]
[1719345993755,15.1342,138.93,138.84,15.8457]
[1719345993962,1.43502399,138.92,138.84,15.8457]
[1719345994131,8.63352399,138.92,138.84,15.8457]
[1719345994628,1.43502399,138.92,138.85,0.78723188]
[1719345995850,1.43502399,138.92,138.84,15.8457]
[1719345996933,1.43502399,138.92,138.85,0.17]
[1719345997347,15.1342,138.93,138.85,0.34]
[1719345998440,15.1342,138.93,138.84,15.8457]
[1719345999047,15.1342,138.93,138.85,21.3]
[1719345999827,1.43502399,138.92,138.86,7.725]
[1719346000144,1.43502399,138.92,138.87,0.34]
[1719346001033,1.43502399,138.92,138.85,28.685]
[1719346001236,1.43502399,138.92,138.85,7.725]
[1719346002333,1.43502399,138.92,138.86,0.17]
[1719346002551,1.43502399,138.92,138.86,0.34]
[1719346002757,1.43502399,138.92,138.85,7.725]
[1719346004237,1.43502399,138.92,138.86,0.34]
[1719346004836,1.43502399,138.92,138.86,7.47249999]
[1719346005744,1.43502399,138.92,138.86,0.34]
[1719346005947,1.43502399,138.96,138.86,0.34]
[1719346006149,17.38192399,138.96,138.86,27.472016]
[1719346006349,1.43502399,138.95,138.86,27.472016]
[1719346006669,1.43502399,138.95,138.87,20.96]
[1719346006966,1.43502399,138.95,138.88,7.47294089]
[1719346011868,1.43502399,138.95,138.89,4.23074999]
[1719346013168,1.43502399,138.95,138.88,4.57075001]
[1719346013737,1.43502399,138.96,138.88,5.57795001]
[1719346014444,1.43502399,138.96,138.88,4.57075001]
[1719346018037,8.63142399,138.96,138.87,25.19075001]
[1719346018251,1.43502399,138.95,138.87,25.19075001]
[1719346018467,1.43502399,138.95,138.88,0.34]
[1719346019065,1.43502399,138.95,138.88,4.57014104]
[1719346019650,1.43502399,138.95,138.87,20.96]
[1719346019968,1.43502399,138.95,138.88,4.23014152]
[1719346020365,1.43502399,138.95,138.89,0.17]
[1719346020669,1.43502399,138.95,138.87,4.23037638]
[1719346020869,1.43502399,138.95,138.88,0.34]
[1719346021351,16.63292399,138.95,138.87,4.23037638]
[1719346022553,16.63292399,138.95,138.86,4.57042359]
[1719346022784,16.63292399,138.95,138.87,0.34]
[1719346025359,1.43502399,138.96,138.88,20.96]
[1719346025580,1.43502399,138.96,138.89,4.56951022]
[1719346025884,1.43502399,138.96,138.9,4.22920571]
[1719346026786,1.43502399,138.96,138.89,4.5692057]
[1719346028452,16.1369,138.98,138.91,20.96]
[1719346028653,16.1369,138.98,138.92,4.56829243]
[1719346029096,1.43502399,138.97,138.91,25.18887006]
[1719346029258,1.43502399,138.97,138.92,0.34]
[1719346029464,1.43502399,138.97,138.91,4.2288059]
[1719346029662,1.43502399,138.97,138.9,4.57006614]
[1719346029855,1.43502399,138.97,138.9,0.34]
[1719346030194,8.63082399,138.97,138.88,20.96]
[1719346030480,7.1969,138.95,138.84,36.1033]
[1719346030664,1.43502399,138.94,138.84,36.1033]
[1719346030860,30.0,138.92,138.85,20.0]
[1719346031668,30.0,138.92,138.86,0.17]
[1719346031864,30.0,138.92,138.86,0.34]
[1719346033886,1.43502399,138.94,138.86,0.34]
[1719346036285,1.43502399,138.95,138.86,0.34]
[1719346037874,1.43502399,138.95,138.87,20.96]
[1719346038067,1.43502399,138.95,138.88,0.34]
[1719346038665,6.1191,138.96,138.88,0.34]
[1719346038666,7.55412399,138.96,138.88,0.34]
[1719346038869,1.43502399,138.97,138.88,21.3472]
[1719346039115,7.55412399,139.0,138.9,20.96]
[1719346039402,7.55412399,139.0,138.91,0.34]
[1719346039893,7.55412399,139.0,138.91,20.34]
[1719346040271,1.43502399,138.99,138.91,20.34]
[1719346046096,1.43502399,138.99,138.91,0.34]
[1719346046273,1.43502399,138.99,138.9,0.34]
[1719346046469,1.43502399,138.99,138.92,0.17]
[1719346046696,1.43502399,138.99,138.9,0.34]
[1719346047797,7.1953,138.98,138.89,15.1433]
[1719346047977,1.43502399,138.97,138.89,15.1433]
[1719346051208,1.43502399,138.98,138.9,0.34]
[1719346052180,1.43502399,138.99,138.9,0.34]
[1719346059590,1.43502399,138.99,138.92,20.96]
[1719346059801,1.43502399,139.01,138.93,0.34]
[1719346066499,1.43502399,139.01,138.89,15.1433]
[1719346066720,6.97,138.99,138.94,6.97]
[1719346066933,1.43502399,138.98,138.95,6.97]
[1719346067219,1.43502399,139.0,138.95,6.97]
[1719346067517,8.40502399,139.0,138.95,6.97]
[1719346067700,1.43502399,139.0,138.95,6.97]
[1719346068689,1.43502399,139.0,138.89,15.1433]
[1719346068895,1.43502399,139.0,138.9,0.34]
[1719346071336,8.62962399,139.0,138.9,0.34]
[1719346071800,7.1948,138.99,138.9,0.34]
[1719346072120,1.43502399,138.98,138.9,0.34]
[1719346072301,8.63032399,138.98,138.9,0.34]
[1719346073111,1.43502399,138.97,138.9,0.34]
[1719346074105,8.62992399,138.99,138.9,0.34]
[1719346074311,1.43502399,138.98,138.9,0.34]
[1719346076526,8.63042399,138.98,138.9,0.34]
[1719346076905,15.13922399,138.98,138.9,0.34]
[1719346079744,22.2933,138.97,138.9,0.17]
[1719346079925,22.2933,138.97,138.87,20.0]
[1719346079926,1.43502399,138.96,138.87,20.0]
[1719346080231,1.43502399,138.96,138.88,0.34]
[1719346082815,16.53252399,138.97,138.89,20.91]
[1719346083020,16.53252399,138.97,138.9,0.34]
[1719346084719,1.43502399,138.99,138.92,20.91]
[1719346084924,1.43502399,138.99,138.93,0.34]
[1719346085244,21.8203,139.01,138.93,0.34]
[1719346085413,1.43502399,139.0,138.93,0.34]
[1719346086235,1.43502399,139.02,138.93,0.34]
[1719346086442,1.43502399,139.02,138.95,20.91]
[1719346086739,1.43502399,139.02,138.96,0.34]
[1719346086937,1.43502399,139.03,138.96,0.34]
[1719346088612,1.43502399,139.03,139.0,6.96]
[1719346089139,1.43502399,139.03,139.01,6.96]
[1719346089639,1.43502399,139.03,139.0,6.96]
[1719346090435,1.43502399,139.03,138.96,0.34]
[1719346090634,1.43502399,139.03,139.0,6.96]
[1719346090929,1.43502399,139.03,138.99,6.96]
[1719346091327,1.43502399,139.03,138.98,6.96]
[1719346091534,1.43502399,139.03,138.96,0.34]
[1719346091728,1.43502399,139.03,138.98,6.96]
[1719346093650,1.43502399,139.03,138.99,6.96]
[1719346094942,1.43502399,139.03,138.96,0.34]
[1719346095147,1.43502399,139.03,138.99,6.96]
[1719346096731,1.43502399,139.03,139.01,6.96]
[1719346097137,1.43502399,139.03,139.02,6.96]
[1719346101638,1.43502399,139.03,139.01,6.96]
[1719346101940,1.43502399,139.03,139.0,6.96]
[1719346102454,1.43502399,139.03,138.96,0.34]
[1719346102660,8.39502399,139.03,138.91,35.1012]
[1719346102837,6.96,139.02,138.91,35.1012]
[1719346103039,6.96,139.0,138.91,15.1012]
[1719346103246,35.9629,138.98,138.88,21.4091]
[1719346103448,1.43502399,138.97,138.87,21.96005602]
[1719346103631,1.43502399,138.97,138.88,20.0]
[1719346103827,1.43502399,138.97,138.88,47.84]
[1719346104053,8.39502399,138.97,138.92,6.96]
[1719346104638,1.43502399,138.97,138.87,16.0855]
[1719346104964,30.0,138.96,138.87,37.0055]
[1719346105155,1.43502399,138.95,138.87,37.0055]
[1719346106161,1.43502399,138.95,138.88,0.17]
[1719346106355,1.43502399,138.95,138.88,0.34]
[1719346108966,1.43502399,138.95,138.87,37.0055]
[1719346109178,30.0,138.94,138.85,20.92]
[1719346109374,1.43502399,138.93,138.85,20.92]
[1719346110249,30.0,138.92,138.85,20.92]
[1719346110555,31.43502399,138.92,138.86,0.34]
[1719346110753,30.0,138.92,138.86,0.34]
[1719346111782,1.43502399,138.91,138.86,0.34]
[1719346112254,30.0,138.92,138.86,0.34]
[1719346113571,1.43502399,138.95,138.86,0.34]
[1719346114070,1.43502399,138.96,138.88,20.92]
[1719346114373,1.43502399,138.96,138.89,0.34]
[1719346114971,1.43502399,138.96,138.89,0.17]
[1719346115174,1.43502399,138.96,138.89,0.34]
[1719346115878,28.87580774,138.98,138.89,0.34]
[1719346116084,1.43502399,138.97,138.89,35.9381]
[1719346118475,8.63082399,138.97,138.85,36.8534]
[1719346118881,8.63082399,138.97,138.86,20.0]
[1719346119183,8.63082399,138.97,138.85,36.8534]
[1719346119184,7.1964,138.96,138.85,36.8534]
[1719346119361,1.43502399,138.95,138.85,36.8534]
[1719346119868,1.43502399,138.95,138.86,0.34]
[1719346121377,1.43502399,138.95,138.83,5.72415165]
[1719346121585,1.43502399,138.95,138.82,21.9272]
[1719346121586,22.1249,138.94,138.82,21.9272]
[1719346121880,1.43502399,138.93,138.83,20.0]
[1719346122251,8.63292399,138.93,138.83,20.0]
[1719346122444,1.43502399,138.93,138.83,20.0]
[1719346123665,1.43502399,138.93,138.84,0.17]
[1719346123865,1.43502399,138.93,138.84,2.90009416]
[1719346124078,1.43502399,138.93,138.85,0.17]
[1719346126884,1.43502399,138.93,138.88,6.98]
[1719346127578,8.41502399,138.93,138.87,6.98]
[1719346128397,8.41502399,138.93,138.88,6.98]
[1719346131382,8.41502399,138.93,138.87,6.98]
[1719346132060,15.61282399,138.93,138.85,0.17]
[1719346132289,6.98,138.92,138.85,0.17]
[1719346132581,1.43502399,138.91,138.87,6.98]
[1719346133681,1.43502399,138.92,138.87,6.98]
[1719346135084,1.43502399,138.92,138.88,6.98]
[1719346135273,1.43502399,138.93,138.9,6.98]
[1719346135476,23.55992399,138.94,138.91,6.98]
[1719346135662,22.1249,138.94,138.88,30.81996262]
[1719346135863,22.1249,138.94,138.89,0.17]
[1719346136387,1.43502399,138.93,138.89,0.17]
[1719346136586,1.43502399,138.93,138.91,6.98]
[1719346136879,22.1249,138.94,138.92,6.98]
[1719346137065,14.18351003,138.98,138.93,6.98]
[1719346137066,1.43502399,138.97,138.93,6.98]
[1719346137259,1.43502399,138.97,138.94,6.98]
[1719346137456,1.43502399,138.97,138.91,0.17]
[1719346137667,1.43502399,138.97,138.93,6.98]
[1719346137881,1.43502399,138.97,138.9,2.89965113]
[1719346138085,1.43502399,138.97,138.92,6.98]
[1719346141677,1.43502399,138.96,138.92,6.98]
[1719346142487,1.43502399,138.96,138.93,6.98]
[1719346142694,1.43502399,138.97,138.93,6.98]
[1719346145892,1.43502399,138.97,138.94,6.98]
[1719346146685,1.43502399,138.97,138.93,6.98]
[1719346147191,1.43502399,138.97,138.92,6.98]
[1719346147589,8.41502399,138.97,138.92,6.98]
[1719346147976,1.43502399,138.97,138.92,6.98]
[1719346148671,1.43502399,138.97,138.85,15.5354]
[1719346148895,6.98,138.95,138.9,6.98]